fUSD/lending_fUSD_20250120
["ID","MTS","AMOUNT","RATE_DAILY","PERIOD"]
[349701446,1737383458329,-1086.72,0.00021643,2]
[349701447,1737383458344,-500.0,0.00021643,2]
[349701448,1737383458360,-500.0,0.00021643,2]
[349701449,1737383458369,-500.0,0.00021643,2]
[349701450,1737383458380,-500.0,0.00021643,2]
[349701451,1737383458390,-500.0,0.00021643,2]
[349701452,1737383458400,-500.0,0.00021643,2]
[349701453,1737383458409,-500.0,0.00021643,2]
[349701454,1737383458418,-500.0,0.00021643,2]
[349701455,1737383458428,-500.0,0.00021643,2]
[349701456,1737383458439,-500.0,0.00021643,2]
[349701457,1737383458449,-500.0,0.00021643,2]
[349701458,1737383458459,-500.0,0.00021643,2]
[349701459,1737383458469,-500.0,0.00021643,2]
[349701460,1737383458479,-500.0,0.00021643,2]
[349701461,1737383458490,-500.0,0.00021643,2]
[349701462,1737383458499,-500.0,0.00021643,2]
[349701463,1737383458509,-500.0,0.00021643,2]
[349701464,1737383458519,-569.91,0.00021643,2]
[349701465,1737383458528,-545.72,0.00021643,2]
[349701466,1737383458539,-500.0,0.00021643,2]
[349701467,1737383458548,-500.0,0.00021643,2]
[349701468,1737383458559,-500.0,0.00021643,2]
[349701469,1737383458569,-626.47,0.00021643,2]
[349701470,1737383458579,-562.62,0.00021643,2]
[349701471,1737383458589,-523.99,0.00021643,2]
[349701472,1737383458599,-509.6,0.00021643,2]
[349701473,1737383458610,-500.0,0.00021643,2]
[349701474,1737383458620,-500.0,0.00021643,2]
[349701475,1737383458630,-563.13,0.00021643,2]
[349701476,1737383458640,-848.39,0.00021643,2]
[349701477,1737383458650,-500.0,0.00021643,2]
[349701478,1737383458661,-530.03,0.00021643,2]
[349701479,1737383458671,-647.21,0.00021643,2]
[349701480,1737383458681,-500.0,0.00021643,2]
[349701481,1737383458691,-806.27,0.00021643,2]
[349701482,1737383458700,-875.35,0.00021643,2]
[349701483,1737383458710,-950.29,0.00021643,2]
[349701484,1737383458718,-500.0,0.00021643,2]
[349701485,1737383458728,-586.02,0.00021643,2]
[349701486,1737383458739,-968.65,0.00021643,2]
[349701487,1737383458750,-1779.93,0.00021643,2]
[349701488,1737383458760,-536.86,0.00021643,2]
[349701489,1737383458770,-500.0,0.00021643,2]
[349701490,1737383458780,-978.6,0.00021643,2]
[349701491,1737383458789,-1379.51,0.00021643,2]
[349701492,1737383458799,-1011.25,0.00021643,2]
[349701493,1737383458808,-641.11,0.00021643,2]
[349701494,1737383458817,-883.6,0.00021643,2]
[349701495,1737383458826,-595.39,0.00021643,2]
[349701496,1737383458840,-962.47,0.00021643,2]
[349701497,1737383458850,-500.0,0.00021643,2]
[349701498,1737383458860,-500.0,0.00021643,2]
[349701499,1737383458870,-761.75,0.00021643,2]
[349701500,1737383458881,-519.96,0.00021643,2]
[349701501,1737383458891,-500.0,0.00021643,2]
[349701502,1737383458902,-500.0,0.00021643,2]
[349701503,1737383458912,-500.0,0.00021643,2]
[349701504,1737383458921,-743.86,0.00021643,2]
[349701505,1737383458931,-500.0,0.00021643,2]
[349701506,1737383458940,-500.0,0.00021643,2]
[349701507,1737383458949,-500.0,0.00021643,2]
[349701508,1737383458960,-551.73,0.00021643,2]
[349701509,1737383458971,-500.0,0.00021643,2]
[349701510,1737383458980,-2346.85,0.00021643,2]
[349701511,1737383458993,-522.45,0.00021643,2]
[349701512,1737383459004,-571.97,0.00021643,2]
[349701513,1737383459014,-500.0,0.00021643,2]
[349701514,1737383459025,-607.55,0.00021643,2]
[349701515,1737383459035,-500.0,0.00021643,2]
[349701516,1737383459046,-500.0,0.00021643,2]
[349701517,1737383459056,-500.0,0.00021643,2]
[349701518,1737383459067,-500.0,0.00021643,2]
[349701519,1737383459077,-714.34,0.00021643,2]
[349701520,1737383459087,-881.4,0.00021643,2]
[349701521,1737383459098,-500.0,0.00021643,2]
[349701522,1737383459108,-500.0,0.00021643,2]
[349701523,1737383459118,-500.0,0.00021643,2]
[349701524,1737383459128,-662.69,0.00021643,2]
[349701525,1737383459138,-651.19,0.00021643,2]
[349701526,1737383459148,-500.0,0.00021643,2]
[349701527,1737383459160,-500.0,0.00021643,2]
[349701528,1737383459171,-522.32,0.00021643,2]
[349701529,1737383459183,-500.0,0.00021643,2]
[349701530,1737383459194,-500.0,0.00021643,2]
[349701531,1737383459208,-1372.41,0.00021643,2]
[349701532,1737383459218,-1728.81,0.00021643,2]
[349701533,1737383459229,-3023.58,0.00021643,2]
[349701534,1737383459243,-500.0,0.00021643,2]
[349701535,1737383459254,-548.66,0.00021643,2]
[349701536,1737383459265,-500.0,0.00021643,2]
[349701537,1737383459274,-500.0,0.00021643,2]
[349701538,1737383459284,-2078.39,0.00021643,2]
[349701539,1737383459295,-550.04,0.00021643,2]
[349701540,1737383459306,-787.25,0.00021643,2]
[349701541,1737383459316,-500.0,0.00021643,2]
[349701542,1737383459326,-1835.65,0.00021643,2]
[349701543,1737383459336,-500.0,0.00021643,2]
[349701544,1737383459346,-500.0,0.00021643,2]
[349701545,1737383459356,-1037.10875049,0.00021653,5]
[349701546,1737383459366,-392.06568509,0.00021664,2]
[349701547,1737383459375,-846.0,0.0002167,2]
[349701548,1737383459384,-1328.13698462,0.00021678,2]
[349701549,1737383459395,-300.0,0.000217,7]
[349701550,1737383459405,-22091.54082366,0.000217,2]
[349701551,1737383459416,-500.0,0.00021715,2]
[349701552,1737383459426,-514.39,0.00021715,2]
[349701553,1737383459436,-961.9,0.00021715,2]
[349701554,1737383459446,-543.051879,0.00021715,2]
[349701555,1737383459456,-500.0,0.00021715,2]
[349701556,1737383459466,-800.76,0.00021715,2]
[349701557,1737383459477,-1376.43,0.00021715,2]
[349701558,1737383459489,-500.0,0.00021715,2]
[349701559,1737383459500,-587.87,0.00021715,2]
[349701560,1737383459510,-500.0,0.00021715,2]
[349701561,1737383459523,-500.0,0.00021715,2]
[349701562,1737383459537,-500.0,0.00021715,2]
[349701563,1737383459551,-701.67,0.00021715,2]
[349701564,1737383459564,-1177.66,0.00021715,2]
[349701565,1737383459575,-1051.8,0.00021715,2]
[349701566,1737383459588,-500.0,0.00021715,2]
[349701567,1737383459600,-1176.97,0.00021715,2]
[349701568,1737383459615,-1283.84,0.00021715,2]
[349701569,1737383459628,-500.0,0.00021715,2]
[349701570,1737383459641,-770.36,0.00021715,2]
[349701571,1737383459654,-1580.42,0.00021715,2]
[349701572,1737383459667,-655.78,0.00021715,2]
[349701573,1737383459681,-1060.52,0.00021715,2]
[349701574,1737383459692,-724.7,0.00021715,2]
[349701575,1737383459704,-583.21,0.00021715,2]
[349701576,1737383459717,-1088.91,0.00021715,2]
[349701577,1737383459730,-532.33,0.00021715,2]
[349701578,1737383459744,-719.7,0.00021715,2]
[349701579,1737383459757,-1333.48,0.00021715,2]
[349701580,1737383459771,-500.0,0.00021716,2]
[349701581,1737383459784,-500.0,0.00021716,2]
[349701582,1737383459798,-713.92,0.00021716,2]
[349701583,1737383459811,-1307.7,0.00021716,2]
[349701584,1737383459824,-500.0,0.00021716,2]
[349701585,1737383459840,-500.0,0.00021716,2]
[349701586,1737383459854,-1000.0,0.00021716,2]
[349701587,1737383459867,-1361.29,0.00021716,2]
[349701588,1737383459880,-500.0,0.00021716,2]
[349701589,1737383459893,-1717.38,0.00021716,2]
[349701590,1737383459907,-1776.8,0.00021716,2]
[349701591,1737383459921,-500.0,0.00021716,2]
[349701592,1737383459934,-500.0,0.00021716,2]
[349701593,1737383459946,-500.0,0.00021716,2]
[349701594,1737383459957,-500.0,0.00021716,2]
[349701595,1737383459968,-500.0,0.00021718,2]
[349701596,1737383459983,-1372.24117568,0.00021726,2]
[349701597,1737383459999,-150.0,0.00021726,2]
[349701598,1737383460011,-750.87666195,0.00021727,2]
[349701599,1737383460023,-200.0,0.0002173,2]
[349701600,1737383460035,-150.0,0.00021731,2]
[349701601,1737383460048,-979.15899596,0.00021737,2]
[349701602,1737383460064,-341.51360316,0.00021739,2]
[349701603,1737383460078,-341.51360316,0.0002174,2]
[349701604,1737383460089,-341.51360317,0.0002174,2]
[349701605,1737383460100,-150.0,0.00021749,2]
[349701606,1737383460111,-341.51360316,0.0002175,2]
[349701607,1737383460124,-750.87666195,0.0002175,2]
[349701608,1737383460137,-979.15899596,0.00021751,2]
[349701609,1737383460149,-150.0,0.00021752,2]
[349701610,1737383460162,-979.15899596,0.00021752,2]
[349701611,1737383460175,-200.0,0.00021753,2]
[349701612,1737383460188,-200.0,0.00021754,2]
[349701613,1737383460200,-1372.24117568,0.00021755,2]
[349701614,1737383460214,-150.0,0.00021756,2]
[349701615,1737383460229,-269.4513294,0.00021756,2]
[349701616,1737383460244,-4702.34,0.00021757,2]
[349701617,1737383460257,-341.51360316,0.00021758,2]
[349701618,1737383460270,-341.51360316,0.0002176,2]
[349701619,1737383460282,-473.92486827,0.00021762,2]
[349701620,1737383460294,-1000.0,0.00021766,2]
[349701621,1737383460307,-150.0,0.00021774,2]
[349701622,1737383460319,-150.0,0.00021774,2]
[349701623,1737383460330,-979.15899596,0.00021774,2]
[349701624,1737383460342,-1006.75520099,0.00021777,2]
[349701625,1737383460355,-1000.0,0.00021778,2]
[349701626,1737383460367,-150.0,0.00021779,2]
[349701627,1737383460380,-1006.75520099,0.00021779,2]
[349701628,1737383460392,-341.51360317,0.00021784,2]
[349701629,1737383460405,-746.80525232,0.00021785,2]
[349701630,1737383460417,-17222.99211053,0.00021787,2]
[349701631,1737383460429,-5229.9429239,0.00021789,2]
[349701632,1737383460441,-1006.75520099,0.0002179,2]
[349701633,1737383460453,-150.0,0.00021792,2]
[349701634,1737383460464,-150.0,0.00021794,2]
[349701635,1737383460476,-269.4513294,0.00021796,2]
[349701636,1737383460490,-200.0,0.00021796,2]
[349701637,1737383460502,-200.0,0.00021798,2]
[349701638,1737383460514,-150.0,0.00021799,2]
[349701639,1737383460527,-200.0,0.000218,2]
[349701640,1737383460540,-612.0,0.000218,7]
[349701641,1737383460553,-269.4513294,0.000218,2]
[349701642,1737383460564,-150.0,0.00021803,2]
[349701643,1737383460576,-1372.24117568,0.00021804,2]
[349701644,1737383460587,-746.80525232,0.00021809,2]
[349701645,1737383460599,-150.0,0.00021809,2]
[349701646,1737383460610,-1000.0,0.00021809,2]
[349701647,1737383460623,-200.0,0.00021814,2]
[349701648,1737383460637,-17222.99211053,0.00021816,2]
[349701649,1737383460650,-150.0,0.00021817,2]
[349701650,1737383460662,-150.0,0.00021818,2]
[349701651,1737383460674,-1372.24117568,0.00021818,2]
[349701652,1737383460687,-150.0,0.00021825,2]
[349701653,1737383460701,-150.0,0.00021826,2]
[349701654,1737383460712,-1006.75520099,0.00021828,2]
[349701655,1737383460725,-1372.24117568,0.0002183,2]
[349701656,1737383460737,-150.0,0.00021831,2]
[349701657,1737383460750,-341.51360317,0.00021833,2]
[349701658,1737383460762,-746.80525232,0.00021835,2]
[349701659,1737383460774,-17222.99211053,0.00021835,2]
[349701660,1737383460786,-1006.75520099,0.00021836,2]
[349701661,1737383460799,-750.87666195,0.00021836,2]
[349701662,1737383460810,-1000.0,0.00021838,2]
[349701663,1737383460821,-341.51360317,0.00021839,2]
[349701664,1737383460835,-979.15899596,0.00021843,2]
[349701665,1737383460846,-150.0,0.00021844,2]
[349701666,1737383460858,-150.0,0.00021848,2]
[349701667,1737383460870,-200.0,0.0002185,2]
[349701668,1737383460882,-150.0,0.00021855,2]
[349701669,1737383460893,-269.4513294,0.00021855,2]
[349701670,1737383460906,-341.51360317,0.00021862,2]
[349701671,1737383460919,-200.0,0.00021863,2]
[349701672,1737383460931,-17222.99211053,0.00021866,2]
[349701673,1737383460942,-750.87666195,0.00021873,2]
[349701674,1737383460954,-750.87666195,0.00021873,2]
[349701675,1737383460966,-259.77234855,0.00021874,2]
[349701676,1737383460979,-4999.999999,0.00021874,3]
[349701677,1737383460994,-150.0,0.00021875,2]
[349701678,1737383461007,-200.0,0.00021877,2]
[349701679,1737383461019,-150.0,0.00021883,2]
[349701680,1737383461032,-269.4513294,0.00021884,2]
[349701681,1737383461044,-200.0,0.00021885,2]
[349701682,1737383461055,-2147.42,0.00021885,7]
[349701683,1737383461067,-2147.42,0.00021885,7]
[349701684,1737383461079,-2147.42,0.00021885,7]
[349701685,1737383461090,-2147.42,0.00021885,7]
[349701686,1737383461102,-1000.0,0.00021885,2]
[349701687,1737383461113,-200.0,0.00021887,2]
[349701688,1737383461124,-200.0,0.00021888,2]
[349701689,1737383461136,-273326.03624208,0.00021888,2]
[349701690,1737383461148,-160.35884204,0.0002189,2]
[349701691,1737383461160,-500.0,0.0002189,2]
[349701692,1737383461172,-160.35884203,0.00021892,2]
[349701693,1737383461184,-150.0,0.00021892,2]
[349701694,1737383461195,-160.35884203,0.00021893,2]
[349701695,1737383461207,-746.80525232,0.00021893,2]
[349701696,1737383461218,-150.0,0.00021894,2]
[349701697,1737383461232,-160.35884203,0.00021895,2]
[349701698,1737383461244,-160.35884203,0.00021897,2]
[349701699,1737383461258,-17222.99211053,0.00021897,2]
[349701700,1737383461270,-160.35884203,0.00021898,2]
[349701701,1737383461282,-200.0,0.00021899,2]
[349701702,1737383461294,-746.80525232,0.00021899,2]
[349701703,1737383461306,-175.47883034,0.000219,2]
[349701704,1737383461317,-149736.62365111,0.000219,4]
[349701705,1737383461327,-160.35884203,0.000219,2]
[349701706,1737383461337,-500.0,0.000219,15]
[349701707,1737383461347,-152.70054168,0.000219,2]
[349701708,1737383461357,-159.56960623,0.000219,2]
[349701709,1737383461368,-159.5696062,0.000219,2]
[349701710,1737383461379,-159.5696062,0.000219,2]
[349701711,1737383461389,-159.5696062,0.000219,2]
[349701712,1737383461398,-159.5696062,0.000219,2]
[349701713,1737383461409,-159.5696062,0.000219,2]
[349701714,1737383461419,-505.43679968,0.000219,2]
[349701715,1737383461428,-203.83175825,0.000219,3]
[349701716,1737383461439,-150.0,0.00021903,2]
[349701717,1737383461651,-150.0,0.00021908,2]
[349701718,1737383461742,-150.0,0.00021912,2]
[349701719,1737383461759,-743.27,0.00021916,2]
[349701720,1737383461769,-967.55,0.00021916,2]
[349701721,1737383461778,-500.0,0.00021916,2]
[349701722,1737383461788,-500.0,0.00021916,2]
[349701723,1737383461797,-901.57,0.00021916,2]
[349701724,1737383461807,-508.63,0.00021916,2]
[349701725,1737383461817,-500.0,0.00021916,2]
[349701726,1737383461826,-677.62,0.00021916,2]
[349701727,1737383461839,-589.89,0.00021916,2]
[349701728,1737383461849,-500.0,0.00021916,2]
[349701729,1737383461858,-500.0,0.00021916,2]
[349701730,1737383461868,-1303.79,0.00021916,2]
[349701731,1737383461878,-500.0,0.00021917,2]
[349701732,1737383461887,-500.0,0.00021917,2]
[349701733,1737383461896,-1086.72,0.00021917,2]
[349701734,1737383461906,-500.0,0.00021917,2]
[349701735,1737383461916,-597.96782407,0.00021917,2]
[349701736,1737383461926,-500.0,0.00021917,2]
[349701737,1737383461934,-500.0,0.00021917,2]
[349701738,1737383461943,-500.0,0.00021917,2]
[349701739,1737383461953,-500.0,0.00021917,2]
[349701740,1737383461962,-500.0,0.00021917,2]
[349701741,1737383461972,-500.0,0.00021917,2]
[349701742,1737383461982,-500.0,0.00021917,2]
[349701743,1737383461994,-500.0,0.00021917,2]
[349701744,1737383462004,-500.0,0.00021917,2]
[349701745,1737383462013,-500.0,0.00021917,2]
[349701746,1737383462023,-500.0,0.00021917,2]
[349701747,1737383462033,-500.0,0.00021917,2]
[349701748,1737383462041,-500.0,0.00021917,2]
[349701749,1737383462051,-500.0,0.00021917,2]
[349701750,1737383462061,-500.0,0.00021917,2]
[349701751,1737383462070,-545.72,0.00021917,2]
[349701752,1737383462080,-569.91,0.00021917,2]
[349701753,1737383462090,-500.0,0.00021917,2]
[349701754,1737383462100,-500.0,0.00021917,2]
[349701755,1737383462110,-500.0,0.00021917,2]
[349701756,1737383462119,-626.47,0.00021917,2]
[349701757,1737383462128,-562.62,0.00021917,2]
[349701758,1737383462138,-523.99,0.00021917,2]
[349701759,1737383462147,-509.6,0.00021917,2]
[349701760,1737383462157,-500.0,0.00021917,2]
[349701761,1737383462169,-500.0,0.00021917,2]
[349701762,1737383462180,-563.13,0.00021917,2]
[349701763,1737383462190,-848.39,0.00021917,2]
[349701764,1737383462200,-500.0,0.00021917,2]
[349701765,1737383462210,-530.03,0.00021917,2]
[349701766,1737383462219,-647.21,0.00021917,2]
[349701767,1737383462228,-500.0,0.00021917,2]
[349701768,1737383462238,-806.27,0.00021917,2]
[349701769,1737383462251,-875.35,0.00021917,2]
[349701770,1737383462260,-500.0,0.00021917,2]
[349701771,1737383462270,-950.29,0.00021917,2]
[349701772,1737383462279,-586.02,0.00021917,2]
[349701773,1737383462290,-968.65,0.00021917,2]
[349701774,1737383462300,-1779.93,0.00021917,2]
[349701775,1737383462311,-536.86,0.00021917,2]
[349701776,1737383462321,-500.0,0.00021917,2]
[349701777,1737383462330,-978.6,0.00021917,2]
[349701778,1737383462340,-1379.51,0.00021917,2]
[349701779,1737383462350,-1011.25,0.00021917,2]
[349701780,1737383462360,-641.11,0.00021917,2]
[349701781,1737383462370,-883.6,0.00021917,2]
[349701782,1737383462379,-595.39,0.00021917,2]
[349701783,1737383462389,-962.47,0.00021917,2]
[349701784,1737383462398,-529.12943535,0.00021917,2]
[349701785,1737383462407,-500.0,0.00021917,2]
[349701786,1737383462416,-761.75,0.00021917,2]
[349701787,1737383462425,-519.96,0.00021917,2]
[349701788,1737383462435,-500.0,0.00021917,2]
[349701789,1737383462449,-500.0,0.00021917,2]
[349701790,1737383462460,-500.0,0.00021917,2]
[349701791,1737383462471,-743.86,0.00021917,2]
[349701792,1737383462480,-500.0,0.00021917,2]
[349701793,1737383462492,-500.0,0.00021917,2]
[349701794,1737383462502,-500.0,0.00021917,2]
[349701795,1737383462512,-551.73,0.00021917,2]
[349701796,1737383462522,-500.0,0.00021917,2]
[349701797,1737383462533,-2346.85,0.00021917,2]
[349701798,1737383462543,-522.45,0.00021917,2]
[349701799,1737383462553,-571.97,0.00021917,2]
[349701800,1737383462564,-500.0,0.00021917,2]
[349701801,1737383462574,-607.55,0.00021917,2]
[349701802,1737383462584,-500.0,0.00021917,2]
[349701803,1737383462594,-500.0,0.00021917,2]
[349701804,1737383462604,-500.0,0.00021917,2]
[349701805,1737383462615,-500.0,0.00021917,2]
[349701806,1737383462624,-714.34,0.00021917,2]
[349701807,1737383462634,-881.4,0.00021917,2]
[349701808,1737383462644,-500.0,0.00021917,2]
[349701809,1737383462654,-500.0,0.00021917,2]
[349701810,1737383462663,-500.0,0.00021917,2]
[349701811,1737383462672,-662.69,0.00021917,2]
[349701812,1737383462681,-651.19,0.00021917,2]
[349701813,1737383462691,-500.0,0.00021917,2]
[349701814,1737383462701,-500.0,0.00021917,2]
[349701815,1737383462710,-522.32,0.00021917,2]
[349701816,1737383462720,-427.10886518,0.00021917,2]
[349701817,1737383462730,-500.0,0.00021917,2]
[349701818,1737383462739,-1372.41,0.00021917,2]
[349701819,1737383462750,-1728.81,0.00021917,2]
[349701820,1737383462760,-3023.58,0.00021917,2]
[349701821,1737383462770,-500.0,0.00021917,2]
[349701822,1737383462779,-548.66,0.00021917,2]
[349701823,1737383462789,-500.0,0.00021917,2]
[349701824,1737383462799,-500.0,0.00021917,2]
[349701825,1737383462808,-2078.39,0.00021917,2]
[349701826,1737383462818,-550.04,0.00021917,2]
[349701827,1737383462827,-787.25,0.00021917,2]
[349701828,1737383462838,-500.0,0.00021917,2]
[349701829,1737383462847,-1835.65,0.00021917,2]
[349701830,1737383462856,-500.0,0.00021917,2]
[349701831,1737383462865,-500.0,0.00021917,2]
[349701832,1737383462875,-4000.0,0.00021918,2]
[349701833,1737383462884,-150.0,0.00021918,2]
[349701834,1737383462898,-2247.76,0.00021918,2]
[349701835,1737383462909,-300.0,0.00021925,2]
[349701836,1737383462920,-150.0,0.00021925,2]
[349701837,1737383462930,-1000.0,0.00021925,2]
[349701838,1737383462939,-150.0,0.0002193,2]
[349701839,1737383462948,-150.0,0.0002193,2]
[349701840,1737383462957,-150.0,0.00021933,2]
[349701841,1737383462966,-250.94048409,0.00021939,2]
[349701842,1737383462975,-150.0,0.00021942,2]
[349701843,1737383462985,-150.0,0.00021943,2]
[349701844,1737383462997,-150.0,0.00021957,2]
[349701845,1737383463006,-150.0,0.00021959,2]
[349701846,1737383463016,-151.24758829,0.00021962,2]
[349701847,1737383463025,-1000.0,0.00021962,2]
[349701848,1737383463035,-1000.0,0.00021965,2]
[349701849,1737383463044,-23788.71193856,0.0002197,2]
[349701850,1737383463054,-4679.0,0.00021973,2]
[349701851,1737383463064,-152.00994595,0.00021973,2]
[349701852,1737383463074,-150.0,0.00021973,4]
[349701853,1737383463083,-285.16028511,0.00021973,4]
[349701854,1737383463093,-150.0,0.00021973,4]
[349701855,1737383463103,-501.9802829,0.00021973,2]
[349701856,1737383463114,-150.0,0.00021977,4]
[349701857,1737383463124,-150.0,0.00021977,2]
[349701858,1737383463133,-38147.40160004,0.0002198,2]
[349701859,1737383463144,-500.0,0.0002198,17]
[349701860,1737383463153,-150.0,0.0002198,4]
[349701861,1737383463164,-150.0,0.00021982,2]
[349701862,1737383463174,-150.0,0.00021984,2]
[349701863,1737383463183,-150.0,0.00021984,4]
[349701864,1737383463193,-1951.3063088,0.00021985,2]
[349701865,1737383463203,-2319.4168493,0.00021985,2]
[349701866,1737383463212,-2687.5273897,0.00021985,2]
[349701867,1737383463223,-3055.6379302,0.00021985,2]
[349701868,1737383463235,-3423.7484706,0.00021985,2]
[349701869,1737383463248,-150.0,0.00021986,4]
[349701870,1737383463257,-150.0,0.00021988,4]
[349701871,1737383463268,-500.0,0.00021989,2]
[349701872,1737383463278,-514.39,0.00021989,2]
[349701873,1737383463289,-961.9,0.00021989,2]
[349701874,1737383463299,-543.051879,0.00021989,2]
[349701875,1737383463310,-500.0,0.00021989,2]
[349701876,1737383463320,-800.76,0.00021989,2]
[349701877,1737383463331,-1376.43,0.00021989,2]
[349701878,1737383463341,-500.0,0.00021989,2]
[349701879,1737383463352,-587.87,0.00021989,2]
[349701880,1737383463362,-500.0,0.00021989,2]
[349701881,1737383463373,-500.0,0.00021989,2]
[349701882,1737383463383,-500.0,0.00021989,2]
[349701883,1737383463392,-701.67,0.00021989,2]
[349701884,1737383463402,-1177.66,0.00021989,2]
[349701885,1737383463412,-1051.8,0.00021989,2]
[349701886,1737383463422,-500.0,0.00021989,2]
[349701887,1737383463432,-1176.97,0.00021989,2]
[349701888,1737383463443,-1283.84,0.00021989,2]
[349701889,1737383463452,-500.0,0.00021989,2]
[349701890,1737383463463,-770.36,0.00021989,2]
[349701891,1737383463473,-1580.42,0.00021989,2]
[349701892,1737383463483,-655.78,0.00021989,2]
[349701893,1737383463496,-1060.52,0.00021989,2]
[349701894,1737383463507,-724.7,0.00021989,2]
[349701895,1737383463517,-583.21,0.00021989,2]
[349701896,1737383463527,-1088.91,0.00021989,2]
[349701897,1737383463539,-532.33,0.00021989,2]
[349701898,1737383463556,-719.7,0.00021989,2]
[349701899,1737383463566,-1333.48,0.00021989,2]
[349701900,1737383463576,-4297.55066445,0.0002199,2]
[349701901,1737383463586,-92305.96195441,0.0002199,14]
[349701902,1737383463597,-238.8781944,0.0002199,2]
[349701903,1737383463608,-500.0,0.0002199,2]
[349701904,1737383463618,-713.92,0.0002199,2]
[349701905,1737383463627,-1307.7,0.0002199,2]
[349701906,1737383463637,-500.0,0.0002199,2]
[349701907,1737383463648,-500.0,0.0002199,2]
[349701908,1737383463659,-1000.0,0.0002199,2]
[349701909,1737383463671,-1361.29,0.0002199,2]
[349701910,1737383463681,-500.0,0.0002199,2]
[349701911,1737383463691,-1717.38,0.0002199,2]
[349701912,1737383463701,-1776.8,0.0002199,2]
[349701913,1737383463711,-500.0,0.0002199,2]
[349701914,1737383463723,-500.0,0.0002199,2]
[349701915,1737383463734,-500.0,0.0002199,2]
[349701916,1737383463747,-500.0,0.0002199,2]
[349701917,1737383463756,-500.0,0.00021992,2]
[349701918,1737383463767,-150.0,0.00021992,4]
[349701919,1737383463777,-193.52568522,0.00021996,2]
[349701920,1737383463788,-118019.66925706,0.00021996,2]
[349701921,1737383463798,-500.0,0.00021996,2]
[349701922,1737383463808,-150.0,0.00021996,2]
[349701923,1737383463818,-150.0,0.00021996,4]
[349701924,1737383463828,-1076363.93786754,0.00021997,2]
[349701925,1737383463841,-5000.0,0.00021998,31]
[349701926,1737383463851,-397.94678563,0.00021998,13]
[349701927,1737383463861,-2000.0,0.00021999,2]
[349701928,1737383463871,-1583.1957683,0.00021999,2]
[349701929,1737383463882,-386.66543216,0.00021999,2]
[349701930,1737383463892,-114150.33088521,0.00022,2]
[349701931,1737383463902,-4876.92168193,0.00022,2]
[349701932,1737383463913,-500.0,0.00022,16]
[349701933,1737383463924,-1873488.11248478,0.00022,2]
[349701934,1737383464106,-39998.7221509,0.00022,2]
[349701935,1737383464118,-411.02692,0.00022,2]
[349701936,1737383464177,-1638.95001,0.00022,2]
[349701937,1737383464188,-4160.45221882,0.00022,2]
[349701938,1737383464205,-500.0,0.00019798,2]
[349701939,1737383464214,-374.39783891,0.00022,2]
[349701940,1737383464226,-1075.5,0.00022,2]
[349701941,1737383464238,-428.315005,0.00022,2]
[349701942,1737383464252,-2698.75,0.00022,2]
[349701943,1737383464267,-255.14099997,0.00022,2]
[349701944,1737383464279,-10690.11135553,0.00022,2]
[349701955,1737383649227,185.26,0.00012329,2]